bitfinex/quotes_SOLUSD_20250601
["timestamp","ask_amount","ask_price","bid_price","bid_amount"]
[1748789881475,26.91635616,153.3,153.24,6.52557805]
[1748789881684,26.91635616,153.3,153.25,20.39319896]
[1748789882282,6.5231572,153.3,153.26,20.39319896]
[1748789882468,20.39319896,153.32,153.28,20.39319896]
[1748789883291,20.39319896,153.29,153.21,6.52665011]
[1748789883455,20.39319896,153.25,153.22,40.3]
[1748789883769,20.39319896,153.26,153.22,60.69319896]
[1748789884793,20.39319896,153.26,153.22,40.3]
[1748789885077,20.39319896,153.26,153.22,60.69319896]
[1748789885677,20.39319896,153.28,153.24,20.39319896]
[1748789886058,20.39319896,153.29,153.25,20.39319896]
[1748789886268,20.39319896,153.31,153.27,20.39319896]
[1748789886762,28.66225423,153.32,153.28,20.39319896]
[1748789887184,8.26905527,153.32,153.29,20.39319896]
[1748789887515,8.26905527,153.32,153.3,20.39319896]
[1748789888266,20.39319896,153.33,153.29,26.91660608]
[1748789889686,20.39319896,153.3,153.26,10.56]
[1748789889862,20.39319896,153.28,153.26,10.56]
[1748789890784,20.39319896,153.3,153.26,10.56]
[1748789891079,20.39319896,153.3,153.26,37.47804818]
[1748789891258,28.44483313,153.31,153.26,37.47804818]
[1748789891466,20.39319896,153.31,153.27,20.39319896]
[1748789891781,26.91559886,153.32,153.27,20.39319896]
[1748789892782,26.91512073,153.33,153.29,20.39319896]
[1748789892972,20.39319896,153.32,153.27,20.39319896]
[1748789893378,6.52161892,153.34,153.3,20.39319896]
[1748789893575,28.44312401,153.35,153.3,20.39319896]
[1748789895583,28.44312401,153.35,153.31,20.39319896]
[1748789897688,20.39319896,153.34,153.3,20.39319896]
[1748789898981,26.91505773,153.34,153.3,20.39319896]
[1748789902187,26.91505773,153.34,153.29,20.39319896]
[1748789902908,6.52111523,153.35,153.31,20.39319896]
[1748789904307,6.52111523,153.35,153.32,20.39319896]
[1748789907381,6.52111523,153.35,153.31,20.39319896]
[1748789910312,1.5588,153.38,153.34,20.39319896]
[1748789910608,1.5588,153.38,153.31,6.5226616]
[1748789910609,20.39319896,153.36,153.31,10.56]
[1748789910805,20.39319896,153.36,153.28,32.52385656]
[1748789910806,20.39319896,153.33,153.28,46.39319896]
[1748789912624,20.39319896,153.33,153.27,77.75747548]
[1748789912625,6.52230628,153.32,153.27,77.75747548]
[1748789912785,6.52230628,153.32,153.27,37.47747548]
[1748789912985,6.52230628,153.32,153.27,77.75747548]
[1748789914184,6.52230628,153.32,153.28,20.39319896]
[1748789923721,6.52188091,153.33,153.29,20.39319896]
[1748789925130,6.52188091,153.33,153.27,57.36443228]
[1748789925422,6.52188091,153.33,153.29,20.39319896]
[1748789926124,6.52188091,153.33,153.28,20.39319896]
[1748789926125,20.39319896,153.33,153.28,20.39319896]
[1748789928735,6.52230628,153.32,153.28,20.39319896]
[1748789931924,20.39319896,153.31,153.27,10.56]
[1748789933015,6.5231572,153.3,153.27,10.56]
[1748789933628,26.91608941,153.31,153.27,30.95319896]
[1748789934016,6.52289045,153.31,153.27,30.95319896]
[1748789934926,26.91608941,153.31,153.27,30.95319896]
[1748789935630,26.91608941,153.31,153.27,10.56]
[1748789935930,20.39319896,153.3,153.27,10.56]
[1748789936426,26.91608941,153.31,153.27,10.56]
[1748789936728,8.18371288,153.32,153.28,20.39319896]
[1748789936940,8.18371288,153.32,153.29,20.39319896]
[1748789938442,8.18371288,153.32,153.28,20.39319896]
[1748789939939,20.39319896,153.31,153.27,30.95319896]
[1748789940644,26.91600724,153.31,153.27,30.95319896]
[1748789941836,28.57702864,153.32,153.28,20.39319896]
[1748789942027,8.18382968,153.32,153.28,20.39319896]
[1748789943336,8.18382968,153.32,153.27,6.52441796]
[1748789943641,28.57702864,153.32,153.28,20.39319896]
[1748789943940,28.57702864,153.32,153.27,20.39319896]
[1748789944515,18.64964886,153.31,153.21,6.52698909]
[1748789944715,20.39319896,153.3,153.25,20.39319896]
[1748789945246,20.39319896,153.31,153.26,20.39319896]
[1748789946712,22.05459896,153.32,153.27,20.39319896]
[1748789948036,1.6614,153.32,153.28,20.39319896]
[1748789948231,28.57707282,153.32,153.28,20.39319896]
[1748789950321,8.18387386,153.32,153.28,20.39319896]
[1748789951134,8.18387386,153.32,153.26,57.34472801]
[1748789951135,28.57707282,153.32,153.27,20.39319896]
[1748789951920,26.91625005,153.31,153.26,71.21319896]
[1748789959051,26.91625005,153.31,153.27,20.39319896]
[1748789961753,6.52305109,153.31,153.27,20.39319896]
[1748789963153,6.52305109,153.31,153.28,20.39319896]
[1748789963352,6.52305109,153.31,153.27,20.39319896]
[1748789964953,26.91625005,153.31,153.26,71.21319896]
[1748789965254,26.91625005,153.31,153.27,20.39319896]
[1748789965932,6.52305109,153.31,153.27,20.39319896]
[1748789966132,6.52305109,153.31,153.28,20.39319896]
[1748789968060,6.52305109,153.31,153.27,20.39319896]
[1748789968440,26.91625005,153.31,153.27,20.39319896]
[1748789969154,26.91625005,153.31,153.26,40.28]
[1748789969341,20.39319896,153.3,153.26,40.28]
[1748789969655,26.91625005,153.31,153.26,60.67319896]
[1748789970236,26.91625005,153.31,153.27,20.39319896]
[1748789971756,26.91625005,153.31,153.25,57.3452098]
[1748789971959,26.91625005,153.31,153.25,50.82]
[1748789972149,26.91625005,153.31,153.26,20.39319896]
[1748789973150,19.59448111,153.31,153.26,13.07143002]
[1748789973760,19.59448111,153.31,153.27,13.07143002]
[1748789973964,6.52305109,153.31,153.27,13.07143002]
[1748789974353,19.59448111,153.31,153.27,13.07143002]
[1748789975463,6.52305109,153.31,153.27,13.07143002]
[1748789977163,21.24355769,153.34,153.29,13.07143002]
[1748789978058,6.52201814,153.33,153.29,13.07143002]
[1748789978944,19.59344816,153.33,153.29,13.07143002]
[1748789979144,19.59344816,153.33,153.28,13.07143002]
[1748789984772,19.59392903,153.32,153.28,13.07143002]
[1748789985271,6.52249901,153.32,153.29,13.07143002]
[1748789999671,19.59392903,153.32,153.28,13.07143002]
[1748790000964,6.52249901,153.32,153.29,13.07143002]
[1748790001673,19.59348083,153.33,153.29,13.07143002]
[1748790003283,19.59298319,153.34,153.3,13.07143002]
[1748790003484,19.59298319,153.34,153.29,6.52341593]
[1748790003485,6.52074742,153.36,153.33,13.07143002]
[1748790003701,6.52074742,153.36,153.34,13.07143002]
[1748790003859,6.52074742,153.36,153.29,46.76341593]
[1748790003860,6.52074742,153.36,153.33,13.07143002]
[1748790004980,6.52020645,153.37,153.34,13.07143002]
[1748790009278,19.59118487,153.38,153.34,13.07143002]
[1748790012979,6.51975485,153.38,153.34,13.07143002]
[1748790014869,19.59080505,153.39,153.34,13.07143002]
[1748790015076,6.51937503,153.39,153.36,13.07143002]
[1748790015480,19.59080505,153.39,153.35,13.07143002]
[1748790016982,6.51937503,153.39,153.36,13.07143002]
[1748790017394,19.59080505,153.39,153.33,46.76167917]
[1748790017594,19.59080505,153.39,153.35,13.07143002]
[1748790018090,6.51937503,153.39,153.36,13.07143002]
[1748790019326,21.23751632,153.4,153.36,13.07143002]
[1748790019481,6.5189863,153.4,153.37,13.07143002]
[1748790020207,6.51860741,153.41,153.38,13.07143002]
[1748790020407,6.51800325,153.43,153.39,13.07143002]
[1748790021396,19.58943327,153.43,153.39,13.07143002]
[1748790022696,6.51800325,153.43,153.4,13.07143002]
[1748790024110,6.51800325,153.43,153.4,12.75143002]
[1748790026114,6.5173596,153.44,153.41,13.07143002]
[1748790027127,6.51648962,153.46,153.43,13.07143002]
[1748790027409,6.51648962,153.46,153.38,6.51975485]
[1748790027410,19.58791964,153.46,153.42,13.07143002]
[1748790028795,19.58791964,153.46,153.37,76.74]
[1748790028796,13.07143002,153.44,153.37,76.74]
[1748790029090,13.07143002,153.44,153.39,13.07143002]
[1748790030145,6.51763018,153.43,153.39,13.07143002]
[1748790030297,19.5890602,153.43,153.39,13.07143002]
[1748790032705,19.5890602,153.43,153.37,10.52]
[1748790032706,13.07143002,153.41,153.37,10.52]
[1748790032907,13.07143002,153.4,153.37,10.52]
[1748790033208,13.07143002,153.39,153.37,10.52]
[1748790033416,13.07143002,153.39,153.35,13.07143002]
[1748790034429,13.07143002,153.4,153.35,13.07143002]
[1748790035017,18.64964886,153.42,153.35,13.07143002]
[1748790035219,20.40023242,153.4,153.36,20.40023242]
[1748790036430,6.51932981,153.39,153.36,20.40023242]
[1748790036633,26.91956223,153.39,153.35,20.40023242]
[1748790037213,6.51932981,153.39,153.36,20.40023242]
[1748790037660,26.9192778,153.4,153.36,20.40023242]
[1748790037835,20.40023242,153.42,153.38,20.40023242]
[1748790038007,1.5727,153.43,153.38,20.40023242]
[1748790038008,21.97293242,153.43,153.38,20.40023242]
[1748790039026,26.91843772,153.42,153.38,20.40023242]
[1748790039510,6.5182053,153.42,153.38,20.40023242]
[1748790039734,26.91843772,153.42,153.38,20.40023242]
[1748790040433,20.40023242,153.41,153.37,20.40023242]
[1748790040737,20.40023242,153.41,153.36,20.40023242]
[1748790041538,6.51890482,153.4,153.36,20.40023242]
[1748790049936,6.51863053,153.41,153.36,20.40023242]
[1748790050133,6.51863053,153.41,153.37,20.40023242]
[1748790051140,6.51863053,153.41,153.35,6.52095749]
[1748790051346,6.51863053,153.41,153.37,20.40023242]
[1748790055455,6.51817361,153.42,153.38,20.40023242]
[1748790055748,6.51817361,153.42,153.39,20.40023242]
[1748790056444,6.51780334,153.43,153.39,20.40023242]
[1748790057133,6.51780334,153.43,153.39,13.04995157]
[1748790057537,6.51780334,153.43,153.4,13.04995157]
[1748790058253,6.51780334,153.43,153.39,13.04995157]
[1748790058553,19.56775491,153.43,153.39,13.04995157]
[1748790061043,155.51738638,153.44,153.41,13.04995157]
[1748790061248,6.51635605,153.46,153.41,13.04995157]
[1748790061574,6.51635605,153.46,153.43,13.04995157]
[1748790061746,8.16639861,153.47,153.44,13.04995157]
[1748790061948,21.20718106,153.48,153.41,10.5]
[1748790061949,14.67279884,153.48,153.46,13.04995157]
[1748790062152,8.15722949,153.48,153.46,13.04995157]
[1748790062856,155.51480434,153.5,153.46,13.04995157]
[1748790063032,155.51480434,153.5,153.43,40.18]
[1748790063033,6.51480434,153.5,153.47,13.04995157]
[1748790063242,8.06319447,153.51,153.47,20.37007549]
[1748790064260,6.51439447,153.51,153.48,20.37007549]
[1748790064463,6.5139552,153.52,153.49,20.37007549]
[1748790066638,6.5139552,153.52,153.48,20.37007549]
[1748790067242,6.5139552,153.52,153.49,20.37007549]
[1748790068257,20.37007549,153.51,153.47,20.37007549]
[1748790070162,6.51465798,153.5,153.48,20.37007549]
[1748790070352,6.51465798,153.5,153.49,20.37007549]
[1748790071646,6.51465798,153.5,153.48,20.37007549]
[1748790071870,6.51465798,153.5,153.49,20.37007549]
[1748790072273,6.51380927,153.52,153.49,20.37007549]
[1748790072875,6.51380927,153.52,153.5,20.37007549]
[1748790075681,150.5488,153.55,153.51,20.37007549]
[1748790075875,170.91887549,153.55,153.51,20.37007549]
[1748790076385,20.37007549,153.54,153.5,20.37007549]
[1748790077084,6.51304694,153.54,153.51,20.37007549]
[1748790081654,6.51304694,153.54,153.46,10.5]
[1748790081655,20.37007549,153.53,153.46,10.5]
[1748790081887,20.37007549,153.51,153.47,60.51007549]
[1748790082078,20.37007549,153.51,153.47,20.37007549]
[1748790082282,26.88467992,153.51,153.47,20.37007549]
[1748790082471,6.51460443,153.51,153.48,20.37007549]
[1748790083184,26.88467992,153.51,153.47,20.37007549]
[1748790083374,20.37007549,153.5,153.46,30.87007549]
[1748790084275,6.51508241,153.49,153.46,30.87007549]
[1748790084594,26.8851579,153.49,153.46,10.5]
[1748790086265,20.37007549,153.48,153.44,20.37007549]
[1748790086464,20.37007549,153.45,153.42,10.48]
[1748790086668,20.37007549,153.44,153.42,10.48]
[1748790087089,20.37007549,153.44,153.38,104.34]
[1748790087264,20.37007549,153.43,153.38,164.83007549]
[1748790087760,20.37007549,153.43,153.38,124.71007549]
[1748790088583,26.8881305,153.42,153.38,124.71007549]
[1748790089279,6.5177259,153.43,153.39,20.37007549]
[1748790090058,26.88780139,153.43,153.39,20.37007549]
[1748790091370,26.88780139,153.43,153.38,124.71007549]
[1748790091784,20.37007549,153.42,153.38,124.71007549]
[1748790092688,26.88780139,153.43,153.38,124.71007549]
[1748790092990,20.37007549,153.42,153.38,10.48]
[1748790093165,20.37007549,153.4,153.38,10.48]
[1748790094388,20.37007549,153.41,153.36,20.37007549]
[1748790094997,22.81180137,153.43,153.38,20.37007549]
[1748790094998,26.88850708,153.42,153.38,20.37007549]
[1748790096610,6.51843159,153.42,153.35,32.52101442]
[1748790096774,26.88850708,153.42,153.38,20.37007549]
[1748790099688,26.88850708,153.42,153.37,20.37007549]
[1748790100407,20.37007549,153.41,153.37,20.37007549]
[1748790100577,20.37007549,153.39,153.34,10.5]
[1748790100774,18.64964886,153.41,153.34,10.5]
[1748790100972,18.64964886,153.41,153.31,20.37007549]
[1748790100973,20.37007549,153.36,153.31,20.37007549]
[1748790101171,26.89095773,153.36,153.31,20.37007549]
[1748790101382,6.51932981,153.39,153.35,20.37007549]
[1748790101593,6.51932981,153.39,153.36,20.37007549]
[1748790103004,1.5771,153.4,153.37,20.37007549]
[1748790103202,6.51883408,153.41,153.37,20.37007549]
[1748790103378,26.88890957,153.41,153.37,20.37007549]
[1748790103578,26.88890957,153.41,153.36,20.37007549]
[1748790104007,20.37007549,153.4,153.36,20.37007549]
[1748790104311,20.37007549,153.39,153.35,10.48]
[1748790104508,20.37007549,153.38,153.31,50.62]
[1748790104828,20.37007549,153.37,153.33,20.37007549]
[1748790105118,26.8894053,153.39,153.35,20.37007549]
[1748790105722,20.37007549,153.38,153.34,20.37007549]
[1748790106215,20.37007549,153.37,153.33,20.37007549]
[1748790106387,21.91367549,153.38,153.33,20.37007549]
[1748790106586,21.91367549,153.38,153.34,20.37007549]
[1748790106914,6.52017995,153.37,153.34,20.37007549]
[1748790108808,18.64964886,153.4,153.35,20.37007549]
[1748790108809,20.37007549,153.39,153.35,20.37007549]
[1748790109027,26.88898031,153.4,153.36,20.37007549]
[1748790109594,20.37007549,153.39,153.35,20.37007549]
[1748790110396,26.8896922,153.39,153.35,20.37007549]
[1748790110631,6.51847989,153.41,153.37,20.37007549]
[1748790110801,6.51847989,153.41,153.38,20.37007549]
[1748790111006,6.51847989,153.41,153.37,20.37007549]
[1748790111519,20.37007549,153.4,153.36,20.37007549]
[1748790112331,20.37007549,153.4,153.35,60.51007549]
[1748790112761,6.51932981,153.39,153.35,60.51007549]
[1748790113206,6.51932981,153.39,153.35,40.14]
[1748790113207,26.8894053,153.39,153.35,40.14]
[1748790113413,20.37007549,153.37,153.34,10.48]
[1748790114312,20.37007549,153.37,153.32,20.37007549]
[1748790115504,20.37007549,153.35,153.3,36.48]
[1748790115711,20.37007549,153.34,153.3,56.85007549]
[1748790116015,20.37007549,153.33,153.3,10.48]
[1748790117430,20.37007549,153.32,153.27,20.37007549]
[1748790117622,26.89280721,153.31,153.26,30.85007549]
[1748790118211,20.37007549,153.3,153.26,10.48]
[1748790118411,20.37007549,153.29,153.26,10.48]
[1748790119124,20.37007549,153.28,153.24,20.37007549]
[1748790119429,26.89398467,153.29,153.24,20.37007549]
[1748790121634,1.6431,153.31,153.28,20.37007549]
[1748790121944,46.37007549,153.33,153.28,20.37007549]
[1748790122120,6.52241008,153.32,153.28,20.37007549]
[1748790122431,26.89248557,153.32,153.28,20.37007549]
[1748790122631,26.89248557,153.32,153.24,6.52559859]
[1748790122632,20.37007549,153.3,153.26,20.37007549]
[1748790123216,6.52358275,153.29,153.26,20.37007549]
[1748790123815,6.52358275,153.29,153.25,20.37007549]
[1748790124213,26.89365824,153.29,153.25,20.37007549]
[1748790124414,26.89365824,153.29,153.24,60.51007549]
[1748790125438,26.89365824,153.29,153.25,20.37007549]
[1748790125614,6.52358275,153.29,153.26,20.37007549]
[1748790125941,6.52358275,153.29,153.22,10.48]
[1748790125942,20.37007549,153.27,153.22,10.48]
[1748790126242,20.37007549,153.27,153.23,20.37007549]
[1748790126548,8.16668275,153.29,153.22,57.16644465]
[1748790126725,28.53675824,153.29,153.22,10.48]
[1748790126922,20.37007549,153.28,153.22,50.64]
[1748790127327,6.524434,153.27,153.23,20.37007549]
[1748790127531,26.89450949,153.27,153.23,20.37007549]
[1748790127710,6.524434,153.27,153.23,20.37007549]
[1748790127911,6.524434,153.27,153.22,10.48]
[1748790128138,1.6431,153.29,153.22,10.48]
[1748790128139,8.16710507,153.29,153.24,20.37007549]
[1748790128354,8.16710507,153.29,153.22,17.00652559]
[1748790128355,26.89331478,153.3,153.26,20.37007549]
[1748790128557,6.522793,153.31,153.28,20.37007549]
[1748790128841,6.52239741,153.32,153.29,20.37007549]
[1748790129040,40.58692435,153.33,153.25,40.16]
[1748790129041,6.52201255,153.33,153.31,20.37007549]
[1748790129343,18.64964886,153.35,153.31,20.37007549]
[1748790129344,6.52145558,153.34,153.31,20.37007549]
[1748790130544,26.89153107,153.34,153.27,17.00429503]
[1748790130722,26.89153107,153.34,153.3,20.37007549]
[1748790131535,20.37007549,153.33,153.29,20.37007549]
[1748790131845,20.37007549,153.32,153.27,30.85007549]
[1748790132420,20.37007549,153.31,153.27,30.85007549]
[1748790132753,20.37007549,153.32,153.27,30.85007549]
[1748790132937,41.47474341,153.34,153.29,20.37007549]
[1748790132938,39.01972435,153.33,153.29,20.37007549]
[1748790133120,43.19517004,153.34,153.29,20.37007549]
[1748790133544,20.37007549,153.33,153.29,20.37007549]
[1748790134244,6.52230628,153.32,153.28,20.37007549]
[1748790134661,6.52230628,153.32,153.29,20.37007549]
[1748790135836,32.52145558,153.34,153.31,20.37007549]
[1748790136245,32.52145558,153.34,153.3,20.37007549]
[1748790136419,6.52145558,153.34,153.3,20.37007549]
[1748790138631,26.89153107,153.34,153.3,20.37007549]
[1748790138823,6.52116959,153.35,153.31,20.37007549]
[1748790139019,6.52116959,153.35,153.32,20.37007549]
[1748790140051,6.52060511,153.36,153.32,20.37007549]
[1748790140639,6.52060511,153.36,153.33,20.37007549]
[1748790141455,6.52060511,153.36,153.32,20.37007549]
[1748790142132,28.50270187,153.37,153.33,20.37007549]
[1748790142335,20.41525232,153.37,153.34,20.37007549]
[1748790142648,26.93551841,153.37,153.34,20.37007549]
[1748790142825,20.41525232,153.37,153.35,20.37007549]
[1748790143150,20.41525232,153.37,153.36,20.37007549]
[1748790143655,28.66946999,153.44,153.36,80.88015098]
[1748790143844,54.66946999,153.44,153.4,20.37007549]
[1748790144046,6.51763018,153.43,153.4,20.37007549]
[1748790144833,6.51763018,153.43,153.37,10.48]
[1748790144834,14.81671387,153.44,153.41,20.37007549]
[1748790145443,149.0,153.46,153.43,20.37007549]
[1748790145648,6.51604818,153.47,153.43,20.37007549]
[1748790145858,26.88612367,153.47,153.43,20.37007549]
[1748790146152,26.88612367,153.47,153.42,20.37007549]
[1748790147140,43.1759523,153.47,153.42,20.37007549]
[1748790147341,20.37007549,153.46,153.42,20.37007549]
[1748790147561,20.37007549,153.45,153.41,20.37007549]
[1748790147772,20.37007549,153.43,153.37,10.48]
[1748790147934,20.37007549,153.42,153.38,20.37007549]
[1748790148775,26.88898031,153.4,153.37,10.48]
[1748790149134,26.88898031,153.4,153.34,20.37007549]
[1748790149135,6.51890482,153.4,153.34,20.37007549]
[1748790149360,20.37007549,153.39,153.35,20.37007549]
[1748790149547,26.88898031,153.4,153.35,20.37007549]
[1748790150440,26.88898031,153.4,153.36,20.37007549]
[1748790153055,26.88898031,153.4,153.35,20.37007549]
[1748790156155,20.37007549,153.39,153.33,10.48]
[1748790156361,20.37007549,153.37,153.33,10.48]
[1748790156579,20.37007549,153.37,153.33,30.85007549]
[1748790157687,20.37007549,153.37,153.33,10.48]
[1748790157879,6.52060511,153.36,153.33,10.48]
[1748790158078,6.52060511,153.36,153.33,30.85007549]
[1748790158265,6.52060511,153.36,153.33,10.48]
[1748790158685,26.8906806,153.36,153.33,10.48]
[1748790159786,6.52145558,153.34,153.3,114.29007549]
[1748790159963,26.89153107,153.34,153.3,93.92]
[1748790160166,26.89153107,153.34,153.29,10.46]
[1748790160375,26.89153107,153.34,153.29,30.83007549]
[1748790161568,6.52145558,153.34,153.3,20.37007549]
[1748790162798,26.89119752,153.35,153.29,16.98344341]
[1748790163084,6.52112203,153.35,153.31,20.37007549]
[1748790163287,26.89119752,153.35,153.31,20.37007549]
[1748790163875,6.52065219,153.36,153.34,20.37007549]
[1748790164281,8.07628075,153.37,153.34,20.37007549]
[1748790164490,6.5194913,153.39,153.35,20.37007549]
[1748790164692,6.5194913,153.39,153.36,20.37007549]
[1748790165990,26.88898031,153.4,153.36,20.37007549]
[1748790170468,20.37007549,153.39,153.35,20.37007549]
[1748790171884,6.51975485,153.38,153.35,20.37007549]
[1748790172876,6.51975485,153.38,153.34,10.46]
[1748790172877,6.51890482,153.4,153.37,20.37007549]
[1748790173280,6.51890482,153.4,153.36,20.37007549]
[1748790173281,26.88898031,153.4,153.36,20.37007549]
[1748790175201,26.88898031,153.4,153.34,10.46]
[1748790175202,6.51890482,153.4,153.38,20.37007549]
[1748790175504,6.51763018,153.43,153.39,20.37007549]
[1748790175798,6.51763018,153.43,153.41,20.37007549]
[1748790176702,6.51720542,153.44,153.41,20.37007549]
[1748790177105,20.37007549,153.43,153.39,20.37007549]
[1748790177279,20.37007549,153.42,153.34,57.10131588]
[1748790177484,20.37007549,153.38,153.34,10.46]
[1748790177708,20.37007549,153.37,153.34,10.46]
[1748790178113,20.37007549,153.37,153.32,20.37007549]
[1748790178285,20.37007549,153.36,153.31,20.37007549]
[1748790178882,6.52103032,153.35,153.3,10.46]
[1748790179112,6.52103032,153.35,153.31,20.37007549]
[1748790179113,26.89110581,153.35,153.31,20.37007549]
[1748790179984,6.52103032,153.35,153.31,20.37007549]
[1748790181485,26.89110581,153.35,153.31,20.37007549]
[1748790183189,20.37007549,153.36,153.32,20.37007549]
[1748790183381,20.37007549,153.38,153.33,20.37007549]
[1748790183586,20.28184886,153.39,153.3,10.46]
[1748790183784,20.37007549,153.38,153.34,20.37007549]
[1748790184009,26.88983034,153.38,153.33,20.37007549]
[1748790184208,6.51975485,153.38,153.35,20.37007549]
[1748790184387,6.51975485,153.38,153.36,20.37007549]
[1748790184594,6.51932981,153.39,153.35,20.37007549]
[1748790184903,26.8894053,153.39,153.34,20.37007549]
[1748790185109,20.37007549,153.38,153.34,20.37007549]
[1748790185613,20.37007549,153.38,153.33,20.37007549]
[1748790185984,20.37007549,153.36,153.32,20.37007549]
[1748790186209,20.37007549,153.36,153.31,20.37007549]
[1748790186506,20.37007549,153.36,153.32,20.37007549]
[1748790187085,26.89025544,153.37,153.32,20.37007549]
[1748790187307,26.89025544,153.37,153.33,20.37007549]
[1748790187906,6.52017995,153.37,153.34,20.37007549]
[1748790188110,6.51974693,153.39,153.36,20.37007549]
[1748790188312,155.51904158,153.4,153.36,20.37007549]
[1748790189120,175.88911707,153.4,153.35,20.37007549]
[1748790189415,20.37007549,153.39,153.35,20.37007549]
[1748790189929,20.37007549,153.38,153.3,16.98299487]
[1748790190108,20.37007549,153.35,153.31,20.37007549]
[1748790190493,20.37007549,153.35,153.3,10.46]
[1748790190494,20.37007549,153.36,153.32,20.37007549]
[1748790190696,20.37007549,153.37,153.33,20.37007549]
[1748790191416,6.52060511,153.36,153.33,20.37007549]
[1748790192423,6.52060511,153.36,153.32,20.37007549]
[1748790193120,26.8906806,153.36,153.32,20.37007549]
[1748790193315,6.52060511,153.36,153.32,20.37007549]
[1748790194323,20.37007549,153.36,153.32,20.37007549]
[1748790195413,20.37007549,153.37,153.32,20.37007549]
[1748790195929,20.37007549,153.35,153.3,10.46]
[1748790196099,20.37007549,153.35,153.3,30.83007549]
[1748790196294,20.37007549,153.35,153.31,20.37007549]
[1748790196720,26.8906806,153.36,153.31,20.37007549]
[1748790196900,6.52060511,153.36,153.3,16.98302977]
[1748790197096,6.52060511,153.36,153.32,20.37007549]
[1748790197292,26.8906806,153.36,153.31,20.37007549]
[1748790197838,20.37007549,153.35,153.3,30.83007549]
[1748790198201,6.52145558,153.34,153.3,30.83007549]
[1748790198437,6.52145558,153.34,153.31,20.37007549]
[1748790200909,26.89110581,153.35,153.31,20.37007549]
[1748790201113,26.89110581,153.35,153.3,30.83007549]
[1748790203326,26.89110581,153.35,153.31,20.37007549]
[1748790203932,6.52024366,153.37,153.34,20.37007549]
[1748790204544,6.52024366,153.37,153.33,20.37007549]
[1748790207341,20.37007549,153.35,153.31,20.37007549]
[1748790207642,20.37007549,153.35,153.3,30.83007549]
[1748790208245,20.37007549,153.34,153.3,10.46]
[1748790209152,6.52188091,153.33,153.3,10.46]
[1748790210122,26.8919564,153.33,153.27,26.0]
[1748790210323,26.8919564,153.33,153.28,20.37007549]
[1748790211519,26.8919564,153.33,153.29,20.37007549]
[1748790211753,6.52162288,153.34,153.32,20.37007549]
[1748790212123,1.5008,153.35,153.33,20.37007549]
[1748790212326,1.5008,153.35,153.32,20.37007549]
[1748790213345,6.52060511,153.36,153.32,20.37007549]
[1748790216547,20.37007549,153.36,153.32,20.37007549]
[1748790217229,6.52017995,153.37,153.34,20.37007549]
[1748790217443,6.52017995,153.37,153.35,20.37007549]
[1748790218425,6.51975485,153.38,153.35,20.37007549]
[1748790219355,6.51975485,153.38,153.31,6.52264025]
[1748790219356,26.88983034,153.38,153.33,20.37007549]
[1748790220032,6.51975485,153.38,153.34,20.37007549]
[1748790220431,6.51975485,153.38,153.35,20.37007549]
[1748790222971,26.88983034,153.38,153.33,10.46]
[1748790223158,20.37007549,153.36,153.33,10.46]
[1748790225160,6.52060511,153.36,153.33,10.46]
[1748790225350,6.52060511,153.36,153.32,20.37007549]
[1748790225746,6.52060511,153.36,153.33,20.37007549]
[1748790225940,6.52060511,153.36,153.34,20.37007549]
[1748790228174,22.81914199,153.38,153.34,20.37007549]
[1748790229265,43.18921748,153.38,153.34,20.37007549]
[1748790229472,43.18921748,153.38,153.33,20.37007549]
[1748790230571,43.18921748,153.38,153.32,20.37007549]
[1748790230572,20.37007549,153.37,153.32,20.37007549]
[1748790231466,20.37007549,153.34,153.31,10.46]
[1748790231653,20.37007549,153.33,153.28,20.37007549]
[1748790232154,20.37007549,153.35,153.3,20.37007549]
[1748790232358,20.37007549,153.35,153.31,20.37007549]
[1748790232758,6.52145558,153.34,153.31,20.37007549]
[1748790232946,6.52145558,153.34,153.3,20.37007549]
[1748790233146,26.89153107,153.34,153.29,20.37007549]
[1748790234146,26.89153107,153.34,153.3,20.37007549]
[1748790235462,20.37007549,153.33,153.29,20.37007549]
[1748790236474,6.52230628,153.32,153.29,20.37007549]
[1748790236775,6.52230628,153.32,153.3,20.37007549]
[1748790237967,6.52188091,153.33,153.3,20.37007549]
[1748790240654,6.52188091,153.33,153.29,20.37007549]
[1748790241189,6.52188091,153.33,153.3,20.37007549]
[1748790241486,6.52163004,153.34,153.32,20.37007549]
[1748790241970,26.8906806,153.36,153.32,20.37007549]
[1748790243079,6.52060511,153.36,153.32,20.37007549]
[1748790244463,26.8906806,153.36,153.32,20.37007549]
[1748790244655,20.37007549,153.35,153.31,20.37007549]
[1748790244973,20.37007549,153.34,153.3,20.37007549]
[1748790245763,20.37007549,153.35,153.31,20.37007549]
[1748790246366,6.52145558,153.34,153.31,20.37007549]
[1748790246749,6.52145558,153.34,153.3,20.37007549]
[1748790247173,6.52017995,153.37,153.33,20.37007549]
[1748790247361,6.52017995,153.37,153.34,20.37007549]
[1748790248080,6.52017995,153.37,153.35,20.37007549]